bitfinex-derivatives/quotes_ETHF0:USTF0_20250803
["timestamp","ask_amount","ask_price","bid_price","bid_amount"]
[1754181162022,2.76326,3374.7,3374.4,2.8112]
[1754181162325,5.3783,3374.7,3374.4,2.8112]
[1754181162529,4.29208,3374.7,3374.4,2.8112]
[1754181162826,3.2078,3375.1,3373.9,3.2078]
[1754181163028,0.59288,3374.0,3373.8,2.1514]
[1754181163326,2.7264,3374.5,3373.1,3.80083]
[1754181163327,0.9261,3373.8,3373.2,1.52352]
[1754181163516,0.59294,3373.7,3373.1,3.80084]
[1754181163719,0.59294,3373.7,3373.1,5.02174]
[1754181163919,0.59294,3373.7,3373.1,4.4287]
[1754181164121,3.6993,3373.8,3373.5,1.2209]
[1754181164321,0.59292,3373.8,3373.1,3.2078]
[1754181164526,0.59297,3373.6,3373.2,2.1514]
[1754181164733,4.29227,3373.6,3373.3,2.1514]
[1754181164935,0.9261,3373.3,3373.1,3.2078]
[1754181165137,0.9261,3373.3,3373.1,6.019]
[1754181165432,3.6993,3373.8,3373.1,3.2078]
[1754181165625,0.59298,3373.5,3373.1,3.2078]
[1754181165826,0.59301,3373.3,3373.1,6.019]
[1754181166636,0.9261,3372.9,3372.6,0.9305]
[1754181166830,0.9261,3372.9,3372.7,0.9305]
[1754181167032,1.83748,3372.9,3372.5,3.2078]
[1754181167331,3.6993,3372.9,3372.7,3.7417]
[1754181167535,0.59305,3373.1,3372.8,2.8112]
[1754181167732,0.9261,3373.0,3372.8,2.8112]
[1754181167929,0.9261,3373.0,3371.9,42.69]
[1754181167930,0.59318,3372.4,3372.2,2.5208]
[1754181168138,1.2444,3372.7,3372.2,0.9305]
[1754181168139,0.9261,3372.5,3372.2,0.9305]
[1754181168341,3.36632,3372.7,3372.1,3.2078]
[1754181168634,3.6993,3372.5,3372.3,1.5903]
[1754181169035,3.2078,3372.9,3372.3,0.9305]
[1754181169233,3.2078,3372.9,3372.3,2.5208]
[1754181169442,3.2078,3372.9,3372.4,3.7417]
[1754181169626,0.5931,3372.8,3372.2,3.7417]
[1754181169932,4.1339,3372.9,3372.2,3.7417]
[1754181169933,0.9261,3372.5,3372.3,2.8112]
[1754181170431,3.2078,3372.9,3372.4,3.7417]
[1754181170432,2.7732,3372.8,3372.4,3.7417]
[1754181170737,3.6993,3372.8,3372.3,0.59318]
[1754181170933,3.6993,3372.8,3372.4,1.2209]
[1754181171239,3.6993,3372.8,3372.6,2.8112]
[1754181171630,2.1705,3372.8,3372.7,2.8112]
[1754181171824,0.9261,3372.6,3372.4,1.5903]
[1754181172028,0.9261,3372.6,3372.4,2.8112]
[1754181172226,3.2078,3372.9,3372.1,3.2078]
[1754181172427,3.6993,3372.2,3371.6,0.5933]
[1754181172627,3.99163144,3372.2,3371.5,3.2078]
[1754181172837,0.59322,3372.1,3371.5,3.2078]
[1754181173037,0.59327,3371.9,3371.5,3.2078]
[1754181173234,3.36648,3371.8,3371.6,3.7417]
[1754181173438,0.9261,3371.7,3371.6,3.7417]
[1754181173936,3.36648,3371.8,3371.6,3.7417]
[1754181174325,1.83768,3371.8,3371.6,2.1514]
[1754181174530,3.2078,3371.7,3371.0,6.019]
[1754181174840,0.5933,3371.7,3371.5,3.7417]
[1754181175136,4.2926,3371.7,3371.3,0.9305]
[1754181175339,1.2444,3371.7,3371.3,3.2078]
[1754181175535,3.2078,3371.8,3370.7,45.8998]
[1754181175730,3.6993,3371.4,3370.7,45.8998]
[1754181176037,0.59335,3371.4,3370.8,0.59345]
[1754181176234,0.9261,3371.6,3370.8,3.7417]
[1754181176441,0.9261,3371.6,3370.8,4.33514]
[1754181176644,0.59337,3371.3,3370.7,3.80126]
[1754181176937,4.4522,3371.8,3371.1,3.2078]
[1754181177126,4.4522,3371.8,3371.4,3.7417]
[1754181177331,5.3783,3371.8,3371.5,0.9305]
[1754181177532,0.59332,3371.6,3371.1,0.9305]
[1754181177731,2.4549,3371.5,3371.2,3.80117]
[1754181177935,0.9261,3371.5,3371.4,3.7519]
[1754181178139,3.2078,3371.8,3371.2,3.2078]
[1754181178140,0.9513,3371.3,3371.2,3.2078]
[1754181178531,0.9513,3371.3,3371.2,5.9873]
[1754181178733,0.59332,3371.6,3371.3,2.7795]
[1754181179033,2.7273,3371.7,3371.5,1.1638]
[1754181179237,0.9513,3371.6,3371.5,2.7795]
[1754181179737,3.2078,3371.8,3371.7,3.7519]
[1754181180037,3.2078,3372.2,3372.1,3.7519]
[1754181180427,3.2078,3372.2,3371.7,1.6157]
[1754181180634,0.9513,3372.0,3371.8,2.72947]
[1754181180835,0.9513,3372.0,3371.9,3.7519]
[1754181181141,2.7273,3371.9,3371.3,2.7795]
[1754181181437,1.54457,3371.8,3371.7,2.7795]
[1754181181639,3.6786,3371.7,3371.4,3.7519]
[1754181181836,2.7273,3371.7,3371.5,1.6157]
[1754181182044,2.1539,3371.6,3371.5,1.6157]
[1754181182233,3.6786,3371.6,3371.5,1.6157]
[1754181182538,3.6786,3371.5,3371.4,1.1638]
[1754181182740,0.9513,3371.5,3371.4,2.5881]
[1754181182930,0.9513,3371.5,3371.4,3.7519]
[1754181183131,0.5933,3371.7,3371.4,0.9724]
[1754181183332,4.2719,3371.7,3371.5,2.7795]
[1754181183527,0.9513,3371.6,3371.5,2.7795]
[1754181183740,0.59333,3371.5,3371.2,3.2078]
[1754181183934,0.9513,3371.3,3371.2,3.2078]
[1754181184138,0.59331,3371.7,3371.2,3.2078]
[1754181184441,0.9513,3371.6,3371.4,3.7519]
[1754181184632,4.27193,3371.5,3371.2,3.2078]
[1754181184832,2.476,3371.7,3371.4,2.5881]
[1754181185039,2.476,3371.7,3371.5,2.7795]
[1754181185339,3.2078,3372.2,3372.1,0.59322]
[1754181185531,3.2078,3372.7,3372.0,3.2078]
[1754181185727,3.2078,3372.7,3372.1,2.7795]
[1754181185728,3.6786,3372.2,3372.1,2.7795]
[1754181186133,0.59313,3372.6,3372.1,2.7795]
[1754181186339,0.59313,3372.6,3372.2,3.3727]
[1754181186636,0.9513,3372.4,3372.3,1.6157]
[1754181186841,0.9513,3372.4,3372.0,1.1638]
[1754181186842,0.59318,3372.4,3372.0,1.1638]
[1754181187141,3.6786,3372.2,3372.0,2.7795]
[1754181187344,0.9513,3372.1,3372.0,2.7795]
[1754181187535,2.1539,3372.1,3372.0,2.7795]
[1754181187738,2.1539,3372.6,3372.1,0.59322]
[1754181187937,3.2078,3372.7,3372.2,0.59319]
[1754181188142,4.75222,3372.7,3372.4,0.9724]
[1754181188339,4.75222,3372.7,3372.1,1.75701]
[1754181188340,0.59315,3372.5,3372.1,1.75701]
[1754181188533,0.5932,3372.2,3372.1,1.6157]
[1754181188842,2.476,3371.9,3371.8,2.7795]
[1754181189046,0.9513,3371.9,3371.8,3.7519]
[1754181189237,3.6786,3371.9,3371.4,2.7795]
[1754181189539,0.59319,3372.3,3371.8,0.59327]
[1754181189843,0.9513,3371.8,3371.6,0.5933]
[1754181190143,2.1539,3372.0,3371.8,2.1362]
[1754181190344,0.9513,3371.9,3371.8,2.7795]
[1754181190535,2.7273,3371.7,3371.4,3.7519]
[1754181190844,1.5247,3372.4,3371.9,3.37274]
[1754181191042,3.6786,3372.4,3372.2,0.9724]
[1754181191249,3.2078,3372.6,3371.8,3.7519]
[1754181191444,4.1591,3372.6,3372.4,2.5881]
[1754181191742,4.1591,3372.6,3371.7,3.2078]
[1754181191743,3.2078,3372.6,3372.5,3.7519]
[1754181192445,3.2078,3373.0,3372.9,2.72928]
[1754181192642,3.2078,3373.0,3372.9,3.7519]
[1754181192947,3.2078,3373.6,3373.2,0.59302]
[1754181193135,6.8864,3373.6,3373.2,0.59302]
[1754181193338,1.2026,3373.9,3373.8,1.6157]
[1754181193639,3.2078,3374.0,3373.9,3.7519]
[1754181194042,3.2078,3374.4,3374.0,0.59289]
[1754181194246,1.04002067,3375.3,3373.3,3.2078]
[1754181194247,1.2026,3375.4,3375.0,0.5927]
[1754181194540,1.0,3376.0,3375.3,3.2078]
[1754181194843,1.0,3376.0,3374.9,0.29108539]
[1754181194844,1.0,3376.0,3375.9,3.7519]
[1754181196245,1.9513,3376.0,3375.7,3.2078]
[1754181196444,1.0,3376.0,3375.9,2.7795]
[1754181196650,1.0,3376.0,3375.9,3.7519]
[1754181197448,2.82173245,3377.5,3375.7,3.2078]
[1754181197449,2.476,3377.2,3376.6,2.7795]
[1754181197752,2.476,3377.2,3376.5,4.3716]
[1754181197753,0.5924,3376.8,3376.5,4.3716]
[1754181198049,0.9513,3376.6,3376.5,1.1638]
[1754181198238,4.27102,3376.7,3376.5,1.1638]
[1754181198442,4.27102,3376.7,3376.2,2.5881]
[1754181198443,1.5247,3376.6,3376.2,3.7519]
[1754181198647,0.59236,3377.0,3376.4,0.9724]
[1754181198946,0.59227,3377.5,3376.8,3.2078]
[1754181199251,1.54357,3377.5,3376.7,2.5881]
[1754181199746,0.59232,3377.2,3376.7,2.5881]
[1754181200048,0.9513,3377.2,3376.6,2.1362]
[1754181200249,0.59229,3377.4,3376.7,2.7795]
[1754181200450,0.59229,3377.4,3376.8,0.9724]
[1754181200750,0.59234,3377.1,3376.9,1.1638]
[1754181200950,3.06834,3377.1,3376.9,1.1638]
[1754181201151,2.476,3377.1,3376.9,1.6157]
[1754181201444,3.2078,3377.6,3377.5,0.9724]
[1754181201644,3.2078,3377.6,3377.5,3.7519]
[1754181201848,0.9513,3378.1,3377.6,0.59225]
[1754181202044,0.9513,3378.1,3377.7,3.2078]
[1754181202247,4.27078,3378.1,3377.8,3.7519]
[1754181202446,2.476,3378.0,3377.8,3.7519]
[1754181202749,2.476,3378.0,3377.9,1.1638]
[1754181202950,0.9513,3378.4,3378.0,2.7795]
[1754181203250,3.2078,3378.5,3378.4,3.7519]
[1754181204042,0.59208,3378.6,3378.4,3.7519]
[1754181204353,4.27068,3378.6,3378.4,3.7519]
[1754181205145,0.59208,3378.6,3378.5,3.7519]
[1754181205655,2.476,3378.1,3377.9,3.7519]
[1754181205945,1.5247,3378.5,3378.4,1.1638]
[1754181206350,0.9513,3378.3,3378.0,2.1362]
[1754181206551,4.27073,3378.3,3378.1,1.1638]
[1754181206751,4.27078,3378.1,3377.8,3.7519]
[1754181206952,1.5247,3378.0,3377.8,3.7519]
[1754181207152,0.9513,3378.3,3378.0,2.7795]
[1754181207452,3.6786,3378.3,3378.0,3.7519]
[1754181207655,1.2026,3378.3,3378.0,3.7519]
[1754181207850,1.2026,3378.3,3378.1,1.1638]
[1754181207851,2.476,3378.2,3378.1,1.1638]
[1754181208553,2.5711,3378.0,3377.9,1.2407]
[1754181208751,2.5711,3378.0,3377.9,3.7424]
[1754181209056,0.59218,3378.0,3377.9,3.7424]
[1754181209457,0.59223,3377.8,3377.6,3.7424]
[1754181209652,0.59221,3377.9,3377.7,3.7424]
[1754181209850,0.59219,3378.0,3377.8,3.7424]
[1754181210246,0.59219,3378.0,3377.9,3.7424]
[1754181212452,3.2078,3378.2,3377.4,3.2078]
[1754181212749,1.48017,3378.7,3376.6,0.28253807]
[1754181212750,5.7789,3377.8,3377.1,1.2407]
[1754181212944,2.23376,3378.2,3376.9,1.48091]
[1754181213145,0.59227,3377.6,3377.1,4.33474]
[1754181213450,3.16327,3378.1,3377.5,0.59226]
[1754181213652,0.59223,3377.7,3376.8,3.7424]
[1754181213854,0.59235,3377.1,3376.7,3.2078]
[1754181214052,1.82986,3377.0,3376.7,3.2078]
[1754181214248,3.8086,3376.9,3376.2,2.1604]
[1754181214451,3.2078,3377.2,3375.9,3.48931261]
[1754181214452,3.8086,3376.8,3376.5,4.33483]
[1754181214751,0.59242,3376.7,3376.5,1.2407]
[1754181214953,3.8086,3376.6,3376.5,1.2407]
[1754181215358,3.2078,3377.2,3376.9,0.59236]
[1754181215557,2.1583,3377.6,3377.4,0.59229]
[1754181215851,1.2288,3377.6,3377.5,2.8227]
[1754181216448,3.7999,3377.6,3377.5,1.2407]
[1754181216644,1.2288,3377.6,3377.5,3.41497]
[1754181216850,1.2288,3377.6,3377.5,3.7424]
[1754181218758,1.6416,3377.9,3377.6,2.8227]
[1754181219059,3.8086,3377.3,3377.0,0.59235]
[1754181219360,2.5711,3377.0,3376.8,3.80019]
[1754181219560,2.5711,3376.9,3376.8,3.2078]
[1754181219852,3.8086,3376.8,3376.5,1.2407]
[1754181220053,3.8086,3376.9,3376.8,0.59238]
[1754181220254,3.8086,3376.9,3376.7,3.2078]
[1754181220459,0.59236,3377.0,3376.5,0.59244]
[1754181220760,2.5711,3376.7,3376.5,1.83314]
[1754181221057,2.167,3376.6,3376.3,23.2987]
[1754181221258,3.8086,3376.6,3376.3,24.5394]
[1754181221458,1.6416,3376.5,3376.3,24.5394]
[1754181221654,2.5711,3376.5,3376.3,24.5394]
[1754181221956,3.7974,3376.4,3376.2,3.2078]
[1754181222156,1.2375,3376.0,3375.4,3.2078]
[1754181222357,0.59265,3375.4,3375.0,3.2078]
[1754181222666,7.0164,3375.4,3375.1,1.2407]
[1754181222957,3.8086,3375.3,3375.1,1.83339]
[1754181223157,3.8086,3375.3,3375.1,3.7424]
[1754181223356,1.2375,3375.3,3375.1,1.2407]
[1754181223659,2.5711,3375.2,3375.1,1.2407]
[1754181223863,2.167,3375.0,3374.8,1.2407]
[1754181224052,2.5711,3374.9,3374.8,1.2407]
[1754181224564,2.5711,3374.9,3374.6,3.2078]
[1754181224750,3.8086,3374.8,3374.7,0.59276]
[1754181224952,3.2078,3375.5,3374.7,4.33516]
[1754181225150,3.8086,3375.1,3374.7,4.33516]
[1754181225350,3.36467853,3375.0,3374.7,3.09446]
[1754181225550,3.8086,3375.0,3374.7,3.7424]
[1754181225763,2.5711,3374.9,3374.7,3.7424]
[1754181225947,3.2078,3375.5,3374.8,0.59273]
[1754181225948,1.2375,3375.1,3374.8,0.59273]
[1754181226154,3.8086,3375.1,3374.8,3.09443]
[1754181226354,3.2078,3375.5,3375.2,0.59266]
[1754181226554,2.5711,3375.7,3375.4,3.7424]
[1754181226759,3.3625588,3375.6,3375.4,3.7424]
[1754181227060,0.7914588,3375.5,3375.4,4.33504]
[1754181227658,0.7914588,3375.5,3375.4,3.7424]
[1754181227857,2.5711,3375.3,3375.1,3.41539]
[1754181228070,1.04002067,3375.9,3375.6,0.59259]
[1754181228265,2.167,3375.6,3375.1,1.2407]
[1754181228464,0.7909709,3375.5,3375.0,6.3022]
[1754181228656,0.9295,3375.3,3375.2,1.2407]
[1754181228956,1.04002067,3375.9,3375.3,1.2407]
[1754181229165,2.8791,3376.0,3375.3,1.2407]
[1754181229166,0.79063989,3375.8,3375.3,3.7424]
[1754181229351,2.8791,3376.0,3375.4,3.7424]
[1754181229556,0.7903414,3375.9,3375.0,3.2078]
[1754181229758,3.8086,3375.7,3375.1,3.7424]
[1754181229959,3.8086,3375.5,3375.1,3.7424]
[1754181230161,1.04002067,3376.0,3375.0,3.2078]
[1754181230462,3.8086,3375.1,3375.0,3.8005]
[1754181230650,0.59261,3375.6,3375.0,6.3022]
[1754181230963,3.8086,3375.4,3375.1,2.8227]
[1754181231157,3.8086,3375.4,3375.2,1.2407]
[1754181231353,1.2375,3375.4,3375.2,1.2407]
[1754181231660,0.5928,3374.5,3374.0,3.80068]
[1754181231863,1.6416,3374.2,3374.0,5.04138]
[1754181232068,1.6416,3374.2,3374.1,1.2407]
[1754181232469,1.6416,3374.2,3374.1,2.8227]
[1754181232667,2.167,3374.3,3374.2,0.59285]
[1754181233473,3.8086,3374.2,3374.0,3.2078]
[1754181233664,3.8086,3374.1,3374.0,3.2078]
[1754181234961,2.5711,3374.1,3374.0,4.4485]
[1754181235156,3.2078,3374.6,3374.1,0.59287]
[1754181235157,0.9295,3374.4,3374.1,0.59287]
[1754181235364,0.9295,3374.3,3374.1,2.75327]
[1754181235564,2.5711,3374.3,3374.1,4.33527]
[1754181235766,2.5711,3374.2,3374.1,3.7424]
[1754181235965,3.8086,3374.2,3374.1,3.7424]
[1754181236764,3.2078,3374.6,3374.4,0.5928]
[1754181236972,3.2078,3374.6,3374.5,3.7424]
[1754181237859,2.5711,3375.0,3374.7,0.59276]
[1754181238062,3.7229,3375.0,3374.9,0.59273]
[1754181238264,2.076,3375.0,3374.5,3.2078]
[1754181238459,3.2078,3375.1,3374.2,1.1817]
[1754181238460,2.076,3374.7,3374.2,1.1817]
[1754181238674,1.1518,3374.5,3374.2,1.77454]
[1754181238874,1.5514,3374.3,3374.2,1.77454]
[1754181239072,2.076,3374.4,3374.2,4.31724]
[1754181239274,0.9242,3374.4,3374.3,2.7705]
[1754181239475,0.9242,3374.4,3374.3,3.7244]
[1754181239774,6.8352,3375.1,3374.6,4.31718]
[1754181239976,2.7032,3375.0,3374.7,3.7244]
[1754181240179,2.4756,3374.9,3374.7,3.7244]
[1754181240378,2.4756,3374.9,3374.8,4.31714]
[1754181240574,2.7032,3374.9,3374.2,2.7705]
[1754181240778,3.6274,3374.8,3374.2,2.7705]
[1754181241576,3.6274,3374.7,3374.0,3.2078]
[1754181241779,3.2078,3375.1,3374.0,3.2078]
[1754181241780,2.076,3374.9,3374.2,0.59285]
[1754181242078,3.29604,3374.3,3374.0,3.2078]
[1754181242372,0.59279,3374.6,3374.1,0.59287]
[1754181242678,0.9242,3374.1,3373.5,3.2078]
[1754181242883,1.5514,3373.8,3373.6,0.59295]
[1754181243078,3.6274,3373.9,3373.6,0.59295]
[1754181243376,1.1518,3373.8,3373.6,0.59295]
[1754181243580,2.4756,3373.7,3373.6,0.59295]
[1754181243782,1.1518,3374.1,3373.8,0.59292]
[1754181244079,2.4756,3374.0,3373.8,2.7705]
[1754181244273,3.6274,3373.9,3373.8,3.36341]
[1754181244475,3.2078,3374.8,3374.1,3.7244]
[1754181244672,0.59283,3374.3,3373.9,1.5888]
[1754181244875,0.59283,3374.3,3373.8,1.1817]
[1754181244876,1.5514,3374.2,3373.8,1.1817]
[1754181245077,0.9242,3374.0,3373.5,1.5888]
[1754181245376,0.9242,3374.1,3373.8,1.1817]
[1754181245583,2.4756,3374.1,3373.9,3.7244]
[1754181245777,2.4756,3374.0,3373.9,3.7244]
[1754181247083,3.6274,3374.3,3373.9,0.5929]
[1754181247282,3.6274,3374.3,3374.1,4.31727]
[1754181247475,3.06845,3374.2,3373.8,3.2078]
[1754181247676,2.4756,3374.0,3373.8,3.7244]
[1754181247986,1.1518,3374.2,3373.9,4.3173]
[1754181248184,5.2838,3374.4,3374.2,1.1817]
[1754181248387,0.59277,3374.7,3374.4,1.5888]
[1754181248577,3.6274,3374.5,3374.3,2.72843]
[1754181248883,3.6274,3374.4,3374.3,2.1356]
[1754181249185,0.59281,3374.4,3374.0,1.5888]
[1754181249389,2.4756,3374.1,3374.0,3.7244]
[1754181249573,2.4756,3374.6,3374.0,2.7705]
[1754181249778,2.4756,3374.6,3374.1,0.59286]
[1754181249971,0.59282,3374.4,3373.8,0.59292]
[1754181250175,1.74463,3374.3,3373.7,3.80073]
[1754181250388,2.076,3374.1,3373.8,1.1817]
[1754181250679,3.6274,3374.0,3373.8,2.7705]
[1754181250988,3.6274,3374.0,3373.8,3.7244]
[1754181251585,3.6274,3373.9,3373.4,3.7244]
[1754181251793,3.80069,3374.0,3373.3,3.8008]
[1754181251794,3.6274,3373.8,3373.5,0.59296]
[1754181251984,3.6274,3373.8,3373.7,1.1817]
[1754181252178,3.6274,3373.7,3373.3,3.8008]
[1754181252378,0.59293,3373.8,3373.3,7.5252]
[1754181252684,2.076,3373.6,3373.4,2.7705]
[1754181252878,2.4756,3373.5,3373.4,2.7705]
[1754181253079,2.4756,3373.5,3373.4,3.7244]
[1754181254286,0.9242,3373.9,3373.3,3.8008]
[1754181254477,1.1518,3373.8,3373.6,2.7705]
[1754181254682,3.6274,3373.7,3373.6,2.7705]
[1754181255382,3.6274,3373.7,3373.3,3.2078]
[1754181255589,3.6274,3373.4,3373.0,3.7244]
[1754181255790,3.6274,3373.2,3373.0,2.1356]
[1754181256087,3.6274,3373.2,3373.1,1.1817]
[1754181256294,3.6274,3373.6,3373.2,0.59303]
[1754181256476,4.9525,3374.0,3373.4,0.59299]
[1754181256679,0.9242,3373.9,3373.4,0.59299]
[1754181256889,3.8007,3374.0,3373.5,3.7244]
[1754181257189,3.6274,3373.5,3372.9,4.27511496]
[1754181257385,0.59291,3373.9,3372.9,4.27511496]
[1754181257586,1.74471,3373.9,3373.3,2.18181]
[1754181257889,3.6274,3373.5,3373.4,1.5888]
[1754181258079,3.6274,3373.5,3373.4,0.59299]
[1754181258286,2.4756,3373.5,3373.4,4.31739]
[1754181258480,3.2078,3374.0,3373.4,3.7244]
[1754181258780,3.2078,3374.0,3373.9,3.7244]
[1754181259794,3.2078,3374.0,3373.3,3.2078]
[1754181259795,3.6274,3373.6,3373.3,5.3434]
[1754181260093,1.1518,3374.0,3373.6,0.59294]
[1754181260288,3.6274,3373.8,3373.7,1.1817]
[1754181260488,3.6274,3373.8,3373.7,3.7244]
[1754181260902,0.59294,3373.7,3373.4,0.9539]
[1754181261187,0.59294,3373.7,3373.4,3.7244]
[1754181261392,3.6274,3373.6,3373.5,3.7244]
[1754181261892,3.2078,3374.6,3373.7,1.1817]
[1754181262190,0.79431323,3374.5,3374.3,0.59283]
[1754181262388,0.79431323,3374.4,3374.3,4.31723]
[1754181262691,3.6274,3374.4,3374.3,1.1817]
[1754181262894,4.42171323,3374.4,3374.3,1.1817]
[1754181263287,4.42171323,3374.4,3374.3,3.7244]
[1754181263489,3.2078,3375.0,3374.9,0.59273]
[1754181263682,3.2078,3375.0,3374.9,2.72833]
[1754181263683,0.79466926,3375.0,3374.9,2.72833]
[1754181263893,0.79466926,3375.0,3374.9,4.31713]
[1754181264197,3.2078,3375.4,3375.2,0.59267]
[1754181264386,0.97579585,3375.3,3375.2,4.31707]
[1754181264582,0.97579585,3375.3,3374.8,3.7244]
[1754181264892,3.6274,3375.0,3374.8,1.54664]
[1754181265095,3.6274,3375.0,3374.9,3.7244]
[1754181265395,2.4756,3375.2,3375.1,1.1817]
[1754181265694,3.2078,3375.4,3374.1,1.1817]
[1754181265887,0.9242,3374.7,3374.4,2.5427]
[1754181266091,3.2078,3374.7,3374.0,2.7705]
[1754181266289,2.4756,3374.5,3374.0,2.7705]
[1754181266486,1.5514,3374.0,3373.5,0.59297]
[1754181266795,0.9242,3373.9,3373.4,3.80079]
[1754181267097,3.6274,3373.8,3373.7,1.1817]
[1754181267396,2.4756,3373.8,3373.7,3.7244]
[1754181267896,2.7032,3374.2,3373.7,0.59294]
[1754181268099,3.633,3374.1,3373.8,4.19431]
[1754181268400,0.9801,3374.0,3373.8,4.19431]
[1754181268702,0.9801,3374.0,3373.9,1.1158]
[1754181268896,1.4902,3374.1,3374.0,2.15929]
[1754181269103,3.633,3374.1,3374.0,2.6822]
[1754181269398,2.6529,3374.0,3373.8,1.1158]
[1754181269600,3.2078,3374.3,3373.4,5.2428]
[1754181269601,3.633,3374.1,3373.4,5.2428]
[1754181269796,0.59293,3373.8,3373.4,5.2428]
[1754181270002,3.633,3373.6,3373.4,5.2428]
[1754181270203,0.9801,3373.5,3373.4,2.035]
[1754181270406,0.59299,3373.4,3372.9,1.66038496]
[1754181270598,0.59296,3373.6,3373.1,0.59304]
[1754181270793,2.6529,3373.5,3373.2,2.4856]
[1754181270994,2.4703,3373.4,3373.3,1.1158]
[1754181271501,2.4703,3373.4,3373.3,3.6014]
[1754181271897,3.633,3373.7,3373.3,0.59301]
[1754181272398,3.633,3373.7,3373.5,3.6014]
[1754181272596,2.6529,3373.7,3373.5,3.6014]
[1754181272803,0.9801,3373.6,3373.5,3.6014]
[1754181273102,2.4703,3373.6,3373.5,3.6014]
[1754181273804,1.4902,3374.0,3373.9,1.1158]
[1754181273991,1.1627,3374.1,3373.9,0.9192]
[1754181274194,1.1627,3374.1,3373.8,0.59292]
[1754181274195,4.698,3374.3,3374.1,0.59287]
[1754181274394,0.9801,3374.2,3374.1,1.1158]
[1754181274604,3.633,3374.2,3374.1,1.1158]
[1754181275107,3.2078,3375.0,3374.1,3.2078]
[1754181275297,0.59277,3374.7,3374.3,0.0157]
[1754181275493,3.633,3374.7,3374.2,3.2078]
[1754181275701,2.1428,3374.0,3373.7,3.2078]
[1754181275901,3.633,3373.8,3373.7,3.2078]
[1754181276299,0.59295,3373.7,3373.3,3.2078]
[1754181276496,0.59297,3373.5,3373.3,3.2078]
[1754181276803,3.633,3373.4,3373.3,3.2078]
[1754181277005,2.1428,3373.0,3372.9,4.27511496]
[1754181277312,4.8606,3373.0,3372.9,1.06731496]
[1754181278313,1.2276,3373.0,3372.9,3.11801496]
[1754181278604,0.59294,3373.7,3373.1,2.62804]
[1754181278812,2.1428,3373.7,3373.4,2.035]
[1754181279012,1.4902,3373.6,3373.4,0.0157]
[1754181279200,1.4902,3374.1,3374.0,2.035]
[1754181280014,3.633,3374.0,3373.7,5.2428]
[1754181280208,2.1428,3373.9,3373.7,5.2428]
[1754181280507,3.2078,3374.2,3373.0,22.27]
[1754181280508,3.633,3373.6,3373.3,3.2078]
[1754181280711,0.59294,3373.7,3373.3,3.2078]
[1754181280910,1.1627,3373.7,3373.2,2.62803]
[1754181281208,2.1428,3373.6,3373.3,1.1158]
[1754181281415,2.1428,3373.6,3373.4,2.035]
[1754181281711,1.4902,3373.5,3373.4,2.035]
[1754181282111,3.633,3374.1,3373.5,0.59297]
[1754181282304,1.4902,3374.1,3374.0,0.59289]
[1754181282506,1.4902,3374.1,3374.0,2.035]
[1754181283214,3.633,3374.1,3373.5,4.3236]
[1754181283402,1.4902,3374.1,3373.6,0.59296]
[1754181283599,3.633,3373.9,3373.7,2.035]
[1754181283804,1.4902,3373.8,3373.7,2.035]
[1754181284512,2.4703,3373.8,3373.7,2.035]
[1754181284810,1.4902,3373.8,3373.7,2.035]
[1754181286118,0.59297,3373.5,3373.0,5.2428]
[1754181286417,1.4902,3373.2,3373.1,2.035]
[1754181286810,0.9801,3373.5,3373.2,2.035]
[1754181286811,1.4902,3373.4,3373.2,2.035]
[1754181287110,1.4902,3373.7,3373.1,1.1551]
[1754181287321,6.1852,3374.2,3373.4,3.2078]
[1754181287509,3.633,3374.1,3373.9,2.035]
[1754181287709,1.4902,3373.9,3373.8,5.2428]
[1754181288117,1.4872,3374.2,3373.9,0.5929]
[1754181288415,1.4872,3374.2,3374.1,0.59287]
[1754181288618,1.4872,3374.2,3374.1,2.66717]
[1754181289021,1.4902,3374.9,3374.7,0.59275]
[1754181289218,1.4902,3374.9,3374.8,2.0088]
[1754181290114,2.1428,3374.7,3374.5,4.127]
[1754181290308,0.59273,3375.0,3374.4,0.59281]
[1754181290510,1.4902,3374.5,3374.4,1.51201]
[1754181290809,1.4902,3374.5,3374.4,1.9695]
[1754181291010,0.9801,3374.4,3374.1,1.9695]
[1754181291316,1.4902,3374.3,3374.2,1.0503]
[1754181291516,1.4902,3374.3,3374.2,1.9695]
[1754181291813,2.6529,3374.4,3374.0,3.80068]
[1754181292021,1.4902,3374.2,3374.1,1.9695]
[1754181293016,2.6529,3374.2,3374.1,1.9695]
[1754181293219,2.1428,3374.2,3374.1,0.59287]
[1754181293408,1.4902,3374.5,3374.1,0.63217]
[1754181293716,2.1428,3374.5,3374.3,1.9695]
[1754181294216,2.6529,3374.4,3374.1,0.0393]
[1754181294420,4.22584,3374.3,3374.0,3.2078]
[1754181294716,0.59288,3374.1,3373.6,3.80075]
[1754181295021,1.4902,3373.8,3373.7,0.9192]
[1754181295521,1.4902,3373.8,3373.7,1.9695]
[1754181295819,1.1627,3374.1,3373.8,0.63222]
[1754181296023,3.633,3374.1,3373.7,0.9192]
[1754181296318,2.1428,3374.1,3373.7,1.9695]
[1754181296508,3.633,3374.0,3373.7,1.9695]
[1754181296709,3.633,3373.9,3373.7,1.9695]
[1754181296909,1.4902,3373.8,3373.7,1.9695]